[Event "Betsys MČR v online bleskovém šachu 2021"]
[Site "Chess.com"]
[Date "2021.04.17"]
[Round "13"]
[White "121pepa"]
[Black "Tobish"]
[Result "0-1"]
[WhiteElo "1440"]
[BlackElo "1684"]
[TimeControl "180+1"]
[EndTime "11:12:06 PDT"]
[Termination "Uživatel Tobish zvítězil po vzdání soupeře"]

1. d4 {[%clk 0:03:00.9]} 1... d5 {[%clk 0:02:59.5]} 2. c4 {[%clk 0:02:59.8]}
2... Nc6 {[%clk 0:02:58.8]} 3. Nc3 {[%clk 0:02:56.4]} 3... Nf6 {[%clk 0:02:54]}
4. Nf3 {[%clk 0:02:55]} 4... Bg4 {[%clk 0:02:53.5]} 5. e3 {[%clk 0:02:53.8]}
5... g6 {[%clk 0:02:53.3]} 6. h3 {[%clk 0:02:51.7]} 6... Bxf3 {[%clk 0:02:51.1]}
7. Qxf3 {[%clk 0:02:48.4]} 7... e6 {[%clk 0:02:48.6]} 8. cxd5 {[%clk 0:02:37.5]}
8... exd5 {[%clk 0:02:47.9]} 9. Bb5 {[%clk 0:02:31.6]} 9... Bg7 {[%clk
0:02:42.9]} 10. O-O {[%clk 0:02:26.3]} 10... O-O {[%clk 0:02:42.4]} 11. Qe2
{[%clk 0:02:20.1]} 11... Ne7 {[%clk 0:02:38.7]} 12. Bd2 {[%clk 0:02:17.6]} 12...
c6 {[%clk 0:02:38.9]} 13. Ba4 {[%clk 0:02:16.6]} 13... Nf5 {[%clk 0:02:37.3]}
14. Bc2 {[%clk 0:02:14.8]} 14... Nd6 {[%clk 0:02:36.5]} 15. a3 {[%clk
0:02:12.2]} 15... Nc4 {[%clk 0:02:29.9]} 16. b4 {[%clk 0:02:08.7]} 16... Re8
{[%clk 0:02:25.8]} 17. Bd3 {[%clk 0:02:06.6]} 17... Nd6 {[%clk 0:02:23.1]} 18.
Rab1 {[%clk 0:02:01.8]} 18... a6 {[%clk 0:02:16.5]} 19. Rfc1 {[%clk 0:01:57.1]}
19... Qd7 {[%clk 0:02:11.7]} 20. Qf3 {[%clk 0:01:49.9]} 20... Nfe4 {[%clk
0:02:07.3]} 21. Bxe4 {[%clk 0:01:31.7]} 21... Nxe4 {[%clk 0:02:01.3]} 22. Qe2
{[%clk 0:01:22.9]} 22... Nxc3 {[%clk 0:01:51]} 23. Bxc3 {[%clk 0:01:20.7]} 23...
Re4 {[%clk 0:01:50]} 24. Rf1 {[%clk 0:01:05]} 24... Rae8 {[%clk 0:01:44.6]} 25.
Bd2 {[%clk 0:01:01.6]} 25... Bf6 {[%clk 0:01:35.4]} 26. Bc3 {[%clk 0:00:53.6]}
26... h5 {[%clk 0:01:22.4]} 27. Qf3 {[%clk 0:00:51.4]} 27... Bg5 {[%clk
0:01:16.6]} 28. Qg3 {[%clk 0:00:48.1]} 28... Bf6 {[%clk 0:01:09.9]} 29. Qf3
{[%clk 0:00:44.5]} 29... Bg7 {[%clk 0:01:09.5]} 30. Qg3 {[%clk 0:00:39.6]} 30...
Kh7 {[%clk 0:01:08.4]} 31. Rbe1 {[%clk 0:00:35.9]} 31... Qe7 {[%clk 0:01:03.5]}
32. Bd2 {[%clk 0:00:32]} 32... f5 {[%clk 0:00:47.3]} 33. Kh1 {[%clk 0:00:29.8]}
33... Bf6 {[%clk 0:00:37.2]} 34. Kg1 {[%clk 0:00:19]} 34... Qd7 {[%clk
0:00:27.6]} 35. Qf3 {[%clk 0:00:17.5]} 35... Be7 {[%clk 0:00:24.9]} 36. Qg3
{[%clk 0:00:17.2]} 36... Bd6 {[%clk 0:00:24.7]} 37. Qh4 {[%clk 0:00:16.5]} 37...
Rxh4 {[%clk 0:00:23.8]} 38. g3 {[%clk 0:00:14.8]} 38... Rhe4 {[%clk 0:00:23]}
39. Kg2 {[%clk 0:00:13.9]} 39... Qe6 {[%clk 0:00:19.3]} 40. f3 {[%clk
0:00:11.1]} 40... Rxe3 {[%clk 0:00:15.5]} 41. Rxe3 {[%clk 0:00:08]} 41... Qd7
{[%clk 0:00:15.8]} 42. Rd3 {[%clk 0:00:05.7]} 42... Qc7 {[%clk 0:00:15.2]} 43.
f4 {[%clk 0:00:01.9]} 43... Re6 {[%clk 0:00:14.7]} 44. Rf2 {[%clk 0:00:02.6]}
44... Qe7 {[%clk 0:00:14.9]} 45. Rdf3 {[%clk 0:00:03]} 45... Re2 {[%clk
0:00:14.8]} 46. Rxe2 {[%clk 0:00:02.6]} 46... Qxe2+ {[%clk 0:00:14.9]} 47. Rf2
{[%clk 0:00:03.3]} 47... Qd3 {[%clk 0:00:15.1]} 48. Kg1 {[%clk 0:00:03.6]} 48...
Qxa3 {[%clk 0:00:15.1]} 49. Kg2 {[%clk 0:00:03.8]} 49... Bxb4 {[%clk 0:00:15]}
50. Bxb4 {[%clk 0:00:03]} 50... Qxb4 {[%clk 0:00:15.3]} 51. Re2 {[%clk
0:00:03.4]} 51... a5 {[%clk 0:00:14.3]} 52. Re6 {[%clk 0:00:03.7]} 52... a4
{[%clk 0:00:13.4]} 53. Rf6 {[%clk 0:00:04]} 53... Kg7 {[%clk 0:00:13.3]} 54. Re6
{[%clk 0:00:03.8]} 54... a3 {[%clk 0:00:13.6]} 55. Re2 {[%clk 0:00:03.7]} 55...
Qb3 {[%clk 0:00:13]} 56. Rd2 {[%clk 0:00:03.3]} 56... a2 {[%clk 0:00:13.2]} 57.
Rd1 {[%clk 0:00:03]} 57... Qxd1 {[%clk 0:00:13.5]} 0-1

[Event "Betsys MČR v online bleskovém šachu 2021"]
[Site "Chess.com"]
[Date "2021.04.17"]
[Round "13"]
[White "KJ327NR"]
[Black "VitaRasik"]
[Result "0-1"]
[WhiteElo "2351"]
[BlackElo "2619"]
[TimeControl "180+1"]
[EndTime "11:12:07 PDT"]
[Termination "Uživatel VitaRasik zvítězil po vzdání soupeře"]

1. e4 {[%clk 0:03:00.9]} 1... d6 {[%clk 0:02:59.5]} 2. d4 {[%clk 0:03:00.4]}
2... g6 {[%clk 0:02:59.7]} 3. Nc3 {[%clk 0:02:59.9]} 3... Bg7 {[%clk 0:02:59.2]}
4. g3 {[%clk 0:02:59.2]} 4... Nc6 {[%clk 0:02:57.6]} 5. Nge2 {[%clk 0:02:58.3]}
5... Bg4 {[%clk 0:02:56.8]} 6. d5 {[%clk 0:02:50.7]} 6... Nd4 {[%clk 0:02:49.5]}
7. Bg2 {[%clk 0:02:35.9]} 7... Nf3+ {[%clk 0:02:48.6]} 8. Kf1 {[%clk 0:02:28.6]}
8... Nd4 {[%clk 0:02:23.3]} 9. h3 {[%clk 0:02:19.5]} 9... Nxe2 {[%clk
0:02:23.1]} 10. Nxe2 {[%clk 0:02:13.5]} 10... Bxe2+ {[%clk 0:02:19.2]} 11. Qxe2
{[%clk 0:02:14.4]} 11... Nf6 {[%clk 0:02:18.4]} 12. Bf3 {[%clk 0:02:11.2]} 12...
O-O {[%clk 0:02:17.4]} 13. Kg2 {[%clk 0:02:10.5]} 13... c6 {[%clk 0:02:17.4]}
14. Bg5 {[%clk 0:02:07.8]} 14... Qb6 {[%clk 0:02:04.7]} 15. c3 {[%clk
0:02:02.5]} 15... h6 {[%clk 0:01:58]} 16. Be3 {[%clk 0:02:01.5]} 16... Qa5
{[%clk 0:01:57.9]} 17. Rhd1 {[%clk 0:01:55.3]} 17... cxd5 {[%clk 0:01:51]} 18.
exd5 {[%clk 0:01:54.8]} 18... b5 {[%clk 0:01:35.3]} 19. Bd4 {[%clk 0:01:47.3]}
19... Rfe8 {[%clk 0:01:34]} 20. Qd2 {[%clk 0:01:41]} 20... Nd7 {[%clk
0:01:28.5]} 21. Bxg7 {[%clk 0:01:25.2]} 21... Kxg7 {[%clk 0:01:28.1]} 22. Re1
{[%clk 0:01:25.4]} 22... Qb6 {[%clk 0:01:16.4]} 23. Qe3 {[%clk 0:00:53.7]} 23...
Qxe3 {[%clk 0:01:14.8]} 24. Rxe3 {[%clk 0:00:54.6]} 24... Nb6 {[%clk 0:01:07.5]}
25. Rae1 {[%clk 0:00:49.5]} 25... Kf8 {[%clk 0:01:07]} 26. Re4 {[%clk
0:00:40.9]} 26... a6 {[%clk 0:01:00.6]} 27. Rb4 {[%clk 0:00:30.2]} 27... Rac8
{[%clk 0:00:54.3]} 28. Rh4 {[%clk 0:00:15.1]} 28... Kg7 {[%clk 0:00:50.9]} 29.
Rd4 {[%clk 0:00:10.2]} 29... Rc5 {[%clk 0:00:48.5]} 30. Re3 {[%clk 0:00:10]}
30... Nc4 {[%clk 0:00:43.4]} 31. Re2 {[%clk 0:00:09.4]} 31... Ne5 {[%clk
0:00:39.6]} 32. Be4 {[%clk 0:00:08.2]} 32... Nd7 {[%clk 0:00:37.1]} 33. f4
{[%clk 0:00:07.4]} 33... Nb6 {[%clk 0:00:34.1]} 34. Bf3 {[%clk 0:00:07.3]} 34...
Rc4 {[%clk 0:00:33.8]} 35. Rxc4 {[%clk 0:00:06.2]} 35... Nxc4 {[%clk 0:00:33.6]}
36. b3 {[%clk 0:00:05.9]} 36... Nb6 {[%clk 0:00:32.6]} 37. Re3 {[%clk
0:00:05.5]} 37... Kf6 {[%clk 0:00:28.8]} 38. g4 {[%clk 0:00:04.8]} 38... g5
{[%clk 0:00:27.1]} 39. Kg3 {[%clk 0:00:03.7]} 39... Rc8 {[%clk 0:00:25]} 40. h4
{[%clk 0:00:03.3]} 40... Rc7 {[%clk 0:00:22.6]} 41. Rd3 {[%clk 0:00:02.5]} 41...
Nd7 {[%clk 0:00:20.4]} 42. hxg5+ {[%clk 0:00:02]} 42... hxg5 {[%clk 0:00:18.5]}
43. fxg5+ {[%clk 0:00:02.4]} 43... Kxg5 {[%clk 0:00:18.1]} 44. Re3 {[%clk
0:00:03.3]} 44... Ne5 {[%clk 0:00:18.1]} 45. a3 {[%clk 0:00:03.4]} 45... Rc8
{[%clk 0:00:16.9]} 46. Kf2 {[%clk 0:00:02.8]} 46... Rh8 {[%clk 0:00:16.4]} 47.
Kg3 {[%clk 0:00:02.9]} 47... Rc8 {[%clk 0:00:13.6]} 48. c4 {[%clk 0:00:03.3]}
48... bxc4 {[%clk 0:00:13.1]} 49. bxc4 {[%clk 0:00:04.2]} 49... Rxc4 {[%clk
0:00:13.2]} 50. Rb3 {[%clk 0:00:04.7]} 50... a5 {[%clk 0:00:12.1]} 51. Rb7
{[%clk 0:00:04.7]} 51... Rc3 {[%clk 0:00:12.4]} 52. Rxe7 {[%clk 0:00:04.2]}
52... Rxf3+ {[%clk 0:00:12.2]} 53. Kg2 {[%clk 0:00:04.6]} 53... Rd3 {[%clk
0:00:12.2]} 54. Ra7 {[%clk 0:00:03.5]} 54... Rxd5 {[%clk 0:00:12]} 55. a4 {[%clk
0:00:04.4]} 55... Kxg4 {[%clk 0:00:11.4]} 0-1

[Event "Betsys MČR v online bleskovém šachu 2021"]
[Site "Chess.com"]
[Date "2021.04.17"]
[Round "13"]
[White "fadamos"]
[Black "czlolcz"]
[Result "1-0"]
[WhiteElo "2309"]
[BlackElo "2186"]
[TimeControl "180+1"]
[EndTime "11:12:09 PDT"]
[Termination "Uživatel fadamos zvítězil na čas"]

1. e4 {[%clk 0:02:59.5]} 1... e5 {[%clk 0:02:11.9]} 2. Nf3 {[%clk 0:02:58.8]}
2... Nf6 {[%clk 0:02:07.9]} 3. Nxe5 {[%clk 0:02:58.1]} 3... d6 {[%clk
0:02:07.3]} 4. Nf3 {[%clk 0:02:57.4]} 4... Nxe4 {[%clk 0:02:07.3]} 5. d4 {[%clk
0:02:58.1]} 5... d5 {[%clk 0:02:07.4]} 6. Bd3 {[%clk 0:02:58.6]} 6... Be7 {[%clk
0:02:07]} 7. O-O {[%clk 0:02:59.2]} 7... Nc6 {[%clk 0:02:04.9]} 8. Re1 {[%clk
0:02:55.3]} 8... Bg4 {[%clk 0:02:01.9]} 9. c3 {[%clk 0:02:17.7]} 9... f5 {[%clk
0:01:58.4]} 10. Bf4 {[%clk 0:02:13.9]} 10... O-O {[%clk 0:01:57.5]} 11. Nbd2
{[%clk 0:02:13.9]} 11... Kh8 {[%clk 0:01:56.9]} 12. h3 {[%clk 0:02:13.8]} 12...
Bh5 {[%clk 0:01:55.7]} 13. Qb3 {[%clk 0:02:10.4]} 13... Bd6 {[%clk 0:01:35]} 14.
Ne5 {[%clk 0:01:55.2]} 14... Nxe5 {[%clk 0:00:58.7]} 15. dxe5 {[%clk 0:01:54.2]}
15... Bc5 {[%clk 0:00:52]} 16. Bxe4 {[%clk 0:01:44]} 16... fxe4 {[%clk
0:00:49.8]} 17. Bg3 {[%clk 0:01:42.7]} 17... c6 {[%clk 0:00:39.2]} 18. Nf1
{[%clk 0:01:34.3]} 18... Bb6 {[%clk 0:00:35.6]} 19. Ne3 {[%clk 0:01:23.4]} 19...
Qg5 {[%clk 0:00:32.8]} 20. Kh2 {[%clk 0:01:20.1]} 20... Bf7 {[%clk 0:00:29.4]}
21. Qc2 {[%clk 0:01:16.2]} 21... Be6 {[%clk 0:00:29]} 22. Rad1 {[%clk
0:01:14.9]} 22... h5 {[%clk 0:00:28]} 23. h4 {[%clk 0:01:11.2]} 23... Qh6 {[%clk
0:00:23.5]} 24. b4 {[%clk 0:00:32.7]} 24... Rf7 {[%clk 0:00:21]} 25. a4 {[%clk
0:00:31.7]} 25... Raf8 {[%clk 0:00:19.9]} 26. a5 {[%clk 0:00:31.1]} 26... Bd8
{[%clk 0:00:18.8]} 27. c4 {[%clk 0:00:30.5]} 27... dxc4 {[%clk 0:00:13.4]} 28.
Nxc4 {[%clk 0:00:29.9]} 28... Bd5 {[%clk 0:00:07.5]} 29. Nd6 {[%clk 0:00:28.1]}
29... Qe6 {[%clk 0:00:04.9]} 30. Nxf7+ {[%clk 0:00:26.2]} 30... Rxf7 {[%clk
0:00:05.8]} 31. Rxe4 {[%clk 0:00:22.1]} 31... Be7 {[%clk 0:00:03.9]} 32. Rf4
{[%clk 0:00:19.4]} 32... Rxf4 {[%clk 0:00:03.3]} 33. Bxf4 {[%clk 0:00:19.7]}
33... Qg4 {[%clk 0:00:04.2]} 34. Bg3 {[%clk 0:00:18]} 34... Bxh4 {[%clk
0:00:04.4]} 35. Re1 {[%clk 0:00:13.1]} 35... Bxg3+ {[%clk 0:00:04.7]} 36. fxg3
{[%clk 0:00:14]} 36... h4 {[%clk 0:00:05.2]} 37. Qf2 {[%clk 0:00:14]} 37...
hxg3+ {[%clk 0:00:03.5]} 38. Qxg3 {[%clk 0:00:14.9]} 38... Qh5+ {[%clk
0:00:04.2]} 39. Qh3 {[%clk 0:00:15.4]} 39... Qxh3+ {[%clk 0:00:04.9]} 40. Kxh3
{[%clk 0:00:16]} 40... Kg8 {[%clk 0:00:05.8]} 41. g4 {[%clk 0:00:15.2]} 41...
Kf7 {[%clk 0:00:06.7]} 42. Kg3 {[%clk 0:00:15.6]} 42... Ke6 {[%clk 0:00:07.4]}
43. Kf4 {[%clk 0:00:15.9]} 43... b6 {[%clk 0:00:08.1]} 44. axb6 {[%clk 0:00:13]}
44... axb6 {[%clk 0:00:09]} 45. Ra1 {[%clk 0:00:13.5]} 45... c5 {[%clk
0:00:08.3]} 46. Ra6 {[%clk 0:00:13.7]} 46... c4 {[%clk 0:00:07.8]} 47. Rxb6+
{[%clk 0:00:14]} 47... Ke7 {[%clk 0:00:08.7]} 48. Rg6 {[%clk 0:00:13.3]} 48...
Kf7 {[%clk 0:00:07.9]} 49. Ra6 {[%clk 0:00:13.8]} 49... c3 {[%clk 0:00:07.8]}
50. Ra3 {[%clk 0:00:11.8]} 50... g5+ {[%clk 0:00:04.5]} 51. Kxg5 {[%clk
0:00:10.8]} 51... c2 {[%clk 0:00:04.5]} 52. Rc3 {[%clk 0:00:11.4]} 52... Be4
{[%clk 0:00:04.6]} 53. Kf4 {[%clk 0:00:11.2]} 53... Bg6 {[%clk 0:00:04.2]} 54.
b5 {[%clk 0:00:11.6]} 54... Ke6 {[%clk 0:00:04.6]} 55. b6 {[%clk 0:00:12.1]}
55... Bd3 {[%clk 0:00:03.4]} 56. b7 {[%clk 0:00:12]} 1-0

[Event "Betsys MČR v online bleskovém šachu 2021"]
[Site "Chess.com"]
[Date "2021.04.17"]
[Round "13"]
[White "Adam20032007"]
[Black "Pantata007"]
[Result "0-1"]
[WhiteElo "1848"]
[BlackElo "2227"]
[TimeControl "180+1"]
[EndTime "11:12:10 PDT"]
[Termination "Uživatel Pantata007 zvítězil matem"]

1. d4 {[%clk 0:03:00.9]} 1... d5 {[%clk 0:02:57.9]} 2. Nf3 {[%clk 0:03:00.4]}
2... Nf6 {[%clk 0:02:57.5]} 3. e3 {[%clk 0:02:59.1]} 3... Bg4 {[%clk 0:02:56.9]}
4. c4 {[%clk 0:02:58.1]} 4... c6 {[%clk 0:02:56.6]} 5. Nc3 {[%clk 0:02:58]} 5...
e6 {[%clk 0:02:56.2]} 6. Qb3 {[%clk 0:02:50.7]} 6... Qb6 {[%clk 0:02:55.5]} 7.
Ne5 {[%clk 0:02:48.7]} 7... Bf5 {[%clk 0:02:53.7]} 8. cxd5 {[%clk 0:02:45.4]}
8... exd5 {[%clk 0:02:51.1]} 9. Qxb6 {[%clk 0:02:28.1]} 9... axb6 {[%clk
0:02:50.3]} 10. Be2 {[%clk 0:02:28]} 10... b5 {[%clk 0:02:49.4]} 11. O-O {[%clk
0:02:27.9]} 11... b4 {[%clk 0:02:44.9]} 12. Nd1 {[%clk 0:02:18.3]} 12... Nbd7
{[%clk 0:02:44.1]} 13. Nxd7 {[%clk 0:02:15.1]} 13... Kxd7 {[%clk 0:02:36.2]} 14.
b3 {[%clk 0:02:14.7]} 14... Ne4 {[%clk 0:02:27.1]} 15. Nb2 {[%clk 0:02:07]}
15... Nc3 {[%clk 0:02:25]} 16. Bd3 {[%clk 0:01:59.7]} 16... Bxd3 {[%clk
0:02:19.1]} 17. Nxd3 {[%clk 0:01:59.5]} 17... Rxa2 {[%clk 0:02:16.5]} 18. Rxa2
{[%clk 0:01:58.6]} 18... Nxa2 {[%clk 0:02:17.4]} 19. Bd2 {[%clk 0:01:58.4]}
19... Bd6 {[%clk 0:02:07.1]} 20. Ra1 {[%clk 0:01:57.3]} 20... Nc3 {[%clk
0:02:02.7]} 21. Bxc3 {[%clk 0:01:48.8]} 21... bxc3 {[%clk 0:02:01.7]} 22. Rc1
{[%clk 0:01:49]} 22... Ra8 {[%clk 0:02:02.1]} 23. g3 {[%clk 0:01:45.9]} 23...
Ra3 {[%clk 0:01:49.3]} 24. Rxc3 {[%clk 0:01:45.4]} 24... b5 {[%clk 0:01:49.6]}
25. Nc5+ {[%clk 0:01:41.8]} 25... Bxc5 {[%clk 0:01:48.9]} 26. dxc5 {[%clk
0:01:42]} 26... b4 {[%clk 0:01:46.9]} 27. Rd3 {[%clk 0:01:41.9]} 27... Ra5
{[%clk 0:01:43]} 28. Rd4 {[%clk 0:01:38]} 28... Rxc5 {[%clk 0:01:30.2]} 29. Rxb4
{[%clk 0:01:37.5]} 29... Kd6 {[%clk 0:01:00]} 30. Kg2 {[%clk 0:01:31.9]} 30...
Rb5 {[%clk 0:00:56.6]} 31. Rf4 {[%clk 0:01:14.6]} 31... Rxb3 {[%clk 0:00:54.1]}
32. Rxf7 {[%clk 0:01:14.4]} 32... c5 {[%clk 0:00:52.7]} 33. Rxg7 {[%clk
0:01:14.5]} 33... c4 {[%clk 0:00:52.7]} 34. Kf1 {[%clk 0:01:07.1]} 34... Rb2
{[%clk 0:00:24.4]} 35. Ke1 {[%clk 0:01:03.3]} 35... c3 {[%clk 0:00:23.1]} 36.
Rf7 {[%clk 0:00:47.2]} 36... Rb1+ {[%clk 0:00:15.6]} 37. Ke2 {[%clk 0:00:46.9]}
37... c2 {[%clk 0:00:16]} 38. Rf6+ {[%clk 0:00:42.2]} 38... Kc5 {[%clk
0:00:15.7]} 39. Rf7 {[%clk 0:00:39.6]} 39... c1=Q {[%clk 0:00:14.7]} 40. Kf3
{[%clk 0:00:39.6]} 40... Qd1+ {[%clk 0:00:12.6]} 41. Kg2 {[%clk 0:00:37.8]}
41... Qh5 {[%clk 0:00:12.3]} 42. Rf4 {[%clk 0:00:34]} 42... Rb4 {[%clk
0:00:10.6]} 43. Rf8 {[%clk 0:00:31.6]} 43... Kd6 {[%clk 0:00:08.3]} 44. Rd8+
{[%clk 0:00:31.5]} 44... Ke7 {[%clk 0:00:07.7]} 45. Ra8 {[%clk 0:00:29.1]} 45...
d4 {[%clk 0:00:05.8]} 46. exd4 {[%clk 0:00:28.5]} 46... Rxd4 {[%clk 0:00:05.5]}
47. Ra7+ {[%clk 0:00:28.2]} 47... Kd6 {[%clk 0:00:05.1]} 48. Ra6+ {[%clk
0:00:28]} 48... Ke5 {[%clk 0:00:04.8]} 49. Ra5+ {[%clk 0:00:27.9]} 49... Rd5
{[%clk 0:00:04.8]} 50. f4+ {[%clk 0:00:27]} 50... Kd6 {[%clk 0:00:04.7]} 51.
Ra6+ {[%clk 0:00:27.1]} 51... Kc5 {[%clk 0:00:05]} 52. Ra5+ {[%clk 0:00:26.8]}
52... Kb6 {[%clk 0:00:05.3]} 53. Ra2 {[%clk 0:00:23.2]} 53... Qf5 {[%clk
0:00:04.1]} 54. Rb2+ {[%clk 0:00:22.8]} 54... Kc6 {[%clk 0:00:04.5]} 55. Rf2
{[%clk 0:00:20.7]} 55... Rd3 {[%clk 0:00:03.9]} 56. Rd2 {[%clk 0:00:20.4]} 56...
Qe4+ {[%clk 0:00:03.8]} 57. Kh3 {[%clk 0:00:17.6]} 57... Rxd2 {[%clk 0:00:04.7]}
58. Kh4 {[%clk 0:00:17.8]} 58... Rxh2+ {[%clk 0:00:04.2]} 59. Kg4 {[%clk
0:00:17.5]} 59... Qe6+ {[%clk 0:00:04.3]} 60. Kf3 {[%clk 0:00:17.6]} 60... Qd5+
{[%clk 0:00:04.4]} 61. Kg4 {[%clk 0:00:17.8]} 61... h5# {[%clk 0:00:04.7]} 0-1

[Event "Betsys MČR v online bleskovém šachu 2021"]
[Site "Chess.com"]
[Date "2021.04.17"]
[Round "13"]
[White "Sandokanom"]
[Black "povrlak60"]
[Result "1-0"]
[WhiteElo "1762"]
[BlackElo "1578"]
[TimeControl "180+1"]
[EndTime "11:12:13 PDT"]
[Termination "Uživatel Sandokanom zvítězil na čas"]

1. c4 {[%clk 0:03:00.9]} 1... Nf6 {[%clk 0:02:58.3]} 2. Nf3 {[%clk 0:03:00.8]}
2... d6 {[%clk 0:02:57]} 3. d4 {[%clk 0:03:01.2]} 3... g6 {[%clk 0:02:56.5]} 4.
a3 {[%clk 0:03:01.6]} 4... Bg7 {[%clk 0:02:56.1]} 5. Nc3 {[%clk 0:03:02.2]} 5...
O-O {[%clk 0:02:55.3]} 6. e4 {[%clk 0:03:02.1]} 6... Bg4 {[%clk 0:02:53.5]} 7.
Be2 {[%clk 0:03:01.8]} 7... Nbd7 {[%clk 0:02:53.3]} 8. O-O {[%clk 0:03:01.3]}
8... e5 {[%clk 0:02:52.1]} 9. h3 {[%clk 0:02:58.5]} 9... Bxf3 {[%clk 0:02:50.9]}
10. Bxf3 {[%clk 0:02:58.4]} 10... c6 {[%clk 0:02:46.5]} 11. d5 {[%clk
0:02:54.1]} 11... Qc7 {[%clk 0:02:45.1]} 12. b3 {[%clk 0:02:46.6]} 12... Rad8
{[%clk 0:02:42.4]} 13. dxc6 {[%clk 0:02:39.5]} 13... bxc6 {[%clk 0:02:40.2]} 14.
Be3 {[%clk 0:02:33.7]} 14... Rfe8 {[%clk 0:02:37.1]} 15. Qc2 {[%clk 0:02:33.4]}
15... Nf8 {[%clk 0:02:36.2]} 16. Rad1 {[%clk 0:02:33.1]} 16... Ne6 {[%clk
0:02:33.9]} 17. b4 {[%clk 0:02:31.4]} 17... Nd7 {[%clk 0:02:11.7]} 18. Qa4
{[%clk 0:02:23.1]} 18... Nd4 {[%clk 0:02:00]} 19. Bg4 {[%clk 0:02:08.1]} 19...
Nb6 {[%clk 0:01:32.9]} 20. Qa5 {[%clk 0:01:56.5]} 20... Qb7 {[%clk 0:01:22.5]}
21. c5 {[%clk 0:01:32.2]} 21... Nc4 {[%clk 0:01:07.2]} 22. Qa4 {[%clk
0:01:19.8]} 22... Nb2 {[%clk 0:01:06.6]} 23. Qa5 {[%clk 0:01:14.1]} 23... Nb3
{[%clk 0:00:50.9]} 24. Qxd8 {[%clk 0:00:55.9]} 24... Rxd8 {[%clk 0:00:48.9]} 25.
Rb1 {[%clk 0:00:55.4]} 25... Nc4 {[%clk 0:00:41]} 26. Rxb3 {[%clk 0:00:52.4]}
26... Nxe3 {[%clk 0:00:40.3]} 27. fxe3 {[%clk 0:00:53.3]} 27... dxc5 {[%clk
0:00:39.2]} 28. Rfb1 {[%clk 0:00:48.1]} 28... c4 {[%clk 0:00:39]} 29. R3b2
{[%clk 0:00:46.1]} 29... Bh6 {[%clk 0:00:36.1]} 30. Kf2 {[%clk 0:00:45.1]} 30...
Qb6 {[%clk 0:00:34.5]} 31. Re1 {[%clk 0:00:36.6]} 31... Rd3 {[%clk 0:00:32.7]}
32. Na4 {[%clk 0:00:34.9]} 32... Qd8 {[%clk 0:00:27.5]} 33. Nc5 {[%clk
0:00:32.2]} 33... Rd2+ {[%clk 0:00:25.3]} 34. Rxd2 {[%clk 0:00:25]} 34... Qxd2+
{[%clk 0:00:24.1]} 35. Re2 {[%clk 0:00:25.9]} 35... Qd1 {[%clk 0:00:19.9]} 36.
Re1 {[%clk 0:00:15.8]} 36... Qd2+ {[%clk 0:00:18]} 37. Re2 {[%clk 0:00:15.3]}
37... Qc1 {[%clk 0:00:17.9]} 38. Re1 {[%clk 0:00:14.5]} 38... Qxa3 {[%clk
0:00:16.1]} 39. Bf3 {[%clk 0:00:12.2]} 39... Qxb4 {[%clk 0:00:15.2]} 40. Nd7
{[%clk 0:00:11.4]} 40... Qd6 {[%clk 0:00:13.9]} 41. Rd1 {[%clk 0:00:09.2]} 41...
Qb4 {[%clk 0:00:11.5]} 42. Nxe5 {[%clk 0:00:08.7]} 42... Bf8 {[%clk 0:00:09.1]}
43. Nxc6 {[%clk 0:00:07.8]} 43... Qb2+ {[%clk 0:00:08.2]} 44. Kg1 {[%clk
0:00:07.1]} 44... a5 {[%clk 0:00:06.9]} 45. Nxa5 {[%clk 0:00:05.8]} 45... Qc2
{[%clk 0:00:06.6]} 46. Nc6 {[%clk 0:00:03.8]} 46... Bb4 {[%clk 0:00:05.4]} 47.
Re1 {[%clk 0:00:03]} 47... Qd2 {[%clk 0:00:04.5]} 48. Rf1 {[%clk 0:00:02.9]}
48... Qb2 {[%clk 0:00:03.4]} 49. Kh1 {[%clk 0:00:03.3]} 49... Kg7 {[%clk
0:00:03.2]} 50. h4 {[%clk 0:00:03.6]} 50... Bc3 {[%clk 0:00:02.9]} 51. h5 {[%clk
0:00:03.6]} 51... Bf6 {[%clk 0:00:02.5]} 52. hxg6 {[%clk 0:00:03.4]} 52... hxg6
{[%clk 0:00:02.4]} 53. e5 {[%clk 0:00:03.8]} 53... Qb6 {[%clk 0:00:02]} 54.
exf6+ {[%clk 0:00:03.4]} 54... Kxf6 {[%clk 0:00:01.4]} 55. Nd4 {[%clk
0:00:02.9]} 1-0